fUSD/lending_fUSD_20240216
["ID","MTS","AMOUNT","RATE_DAILY","PERIOD"]
[314248703,1708119076079,-3301.31,0.00049589,60]
[314248704,1708119076089,-626.52,0.00049589,60]
[314248705,1708119076098,-500.0,0.00049589,60]
[314248706,1708119076108,-500.0,0.00049589,60]
[314248707,1708119076117,-500.0,0.00049589,60]
[314248708,1708119076126,-500.0,0.00049589,60]
[314248709,1708119076136,-500.0,0.00049589,60]
[314248710,1708119076146,-500.0,0.00049589,60]
[314248711,1708119076155,-500.0,0.00049589,60]
[314248712,1708119076165,-1972.92,0.00049589,60]
[314248713,1708119076175,-914.46,0.00049589,60]
[314248714,1708119076185,-991.91,0.00049589,60]
[314248715,1708119076195,-500.0,0.00049589,60]
[314248716,1708119076205,-500.0,0.00049589,60]
[314248717,1708119076214,-500.0,0.00049589,60]
[314248718,1708119076223,-536.93,0.00049589,60]
[314248719,1708119076233,-500.0,0.00049589,60]
[314248720,1708119076243,-500.0,0.00049589,60]
[314248721,1708119076252,-500.0,0.00049589,60]
[314248722,1708119076262,-500.0,0.00049589,60]
[314248723,1708119076272,-500.0,0.00049589,60]
[314248724,1708119076280,-6496.83,0.00049589,60]
[314248725,1708119076289,-500.0,0.00049589,2]
[314248726,1708119076299,-500.0,0.00049589,60]
[314248727,1708119076308,-500.0,0.00049589,60]
[314248728,1708119076318,-1103.19,0.00049589,60]
[314248729,1708119076327,-500.0,0.00049589,60]
[314248730,1708119076336,-151.0,0.00049589,2]
[314248731,1708119076346,-79864.35243343,0.00049589,2]
[314248732,1708119076355,-204.78940017,0.00049593,7]
[314248733,1708119076364,-200.0,0.00049599,30]
[314248734,1708119076374,-1000.0,0.000496,23]
[314248735,1708119076383,-159.59431473,0.000496,30]
[314248736,1708119076392,-159.59431473,0.000496,30]
[314248737,1708119076402,-159.59431473,0.000496,30]
[314248738,1708119076412,-159.59431473,0.000496,30]
[314248739,1708119076421,-159.59431473,0.000496,30]
[314248740,1708119076431,-159.59431473,0.000496,30]
[314248741,1708119076441,-159.59431473,0.000496,30]
[314248742,1708119076450,-159.59431473,0.000496,30]
[314248743,1708119076460,-159.59431473,0.000496,30]
[314248744,1708119076469,-159.59431473,0.000496,30]
[314248745,1708119076478,-159.59431473,0.000496,30]
[314248746,1708119076487,-159.59431473,0.000496,30]
[314248747,1708119076497,-159.59431473,0.000496,30]
[314248748,1708119076506,-159.59,0.000496,30]
[314248749,1708119076515,-152.05174031,0.000496,30]
[314248750,1708119076524,-152.05174031,0.000496,30]
[314248751,1708119076534,-152.05174031,0.000496,30]
[314248752,1708119076543,-152.05174031,0.000496,30]
[314248753,1708119076552,-152.05174031,0.000496,30]
[314248754,1708119076562,-152.05,0.000496,30]
[314248755,1708119076571,-160.12000299,0.000496,30]
[314248756,1708119076581,-160.12000299,0.000496,30]
[314248757,1708119076590,-160.12000299,0.000496,30]
[314248758,1708119076599,-160.12000299,0.000496,30]
[314248759,1708119076608,-160.12000299,0.000496,30]
[314248760,1708119076617,-160.12000299,0.000496,30]
[314248761,1708119076626,-160.12000299,0.000496,30]
[314248762,1708119076635,-160.12000299,0.000496,30]
[314248763,1708119076644,-160.12,0.000496,30]
[314248764,1708119076653,-151.28805513,0.000496,30]
[314248765,1708119076662,-151.28805513,0.000496,30]
[314248766,1708119076671,-151.28805513,0.000496,30]
[314248767,1708119076681,-151.28805513,0.000496,30]
[314248768,1708119076692,-151.28805513,0.000496,30]
[314248769,1708119076701,-151.28805513,0.000496,30]
[314248770,1708119076710,-151.28805513,0.000496,30]
[314248771,1708119076719,-151.28805513,0.000496,30]
[314248772,1708119076728,-151.28805513,0.000496,30]
[314248773,1708119076738,-151.28805513,0.000496,30]
[314248774,1708119076746,-151.28,0.000496,30]
[314248775,1708119076756,-162.82219281,0.000496,30]
[314248776,1708119076765,-162.82219281,0.000496,30]
[314248777,1708119076774,-162.82219281,0.000496,30]
[314248778,1708119076783,-162.82219281,0.000496,30]
[314248779,1708119076793,-162.82219281,0.000496,30]
[314248780,1708119076802,-162.82219281,0.000496,30]
[314248781,1708119076811,-162.82219281,0.000496,30]
[314248782,1708119076821,-162.82219281,0.000496,30]
[314248783,1708119076830,-162.82219281,0.000496,30]
[314248784,1708119076839,-162.82,0.000496,30]
[314248785,1708119076849,-150.0,0.00049601,7]
[314248786,1708119076858,-150.0,0.00049613,7]
[314248787,1708119076867,-150.0,0.00049614,7]
[314248788,1708119076876,-311.0,0.00049615,60]
[314248789,1708119076885,-1000.0,0.0004962,23]
[314248790,1708119076894,-152.72220558,0.00049626,43]
[314248791,1708119076904,-150.0,0.00049627,7]
[314248792,1708119076917,-150.0,0.0004963,7]
[314248793,1708119076926,-150.0,0.00049632,7]
[314248794,1708119076937,-1000.0,0.0004964,23]
[314248795,1708119076948,-1425.096121,0.0004964,23]
[314248796,1708119076957,-150.0,0.00049643,7]
[314248797,1708119076966,-150.0,0.00049647,7]
[314248798,1708119076975,-150.0,0.0004965,7]
[314248799,1708119076986,-205.0,0.00049655,21]
[314248800,1708119076995,-1000.0,0.0004966,23]
[314248801,1708119077005,-1000.0,0.0004966,23]
[314248802,1708119077014,-150.0,0.00049661,7]
[314248803,1708119077023,-300.0,0.00049672,7]
[314248804,1708119077032,-300.0,0.00049673,7]
[314248805,1708119077042,-155.29627021,0.00049676,7]
[314248806,1708119077051,-1000.0,0.0004968,23]
[314248807,1708119077061,-1000.0,0.0004968,23]
[314248808,1708119077070,-150.0,0.00049683,7]
[314248809,1708119077081,-150.0,0.00049684,7]
[314248810,1708119077089,-626.62,0.00049689,30]
[314248811,1708119077098,-150.0,0.00049689,7]
[314248812,1708119077107,-154.887,0.00049696,30]
[314248813,1708119077117,-3000.0,0.000497,79]
[314248814,1708119077126,-200.0,0.000497,79]
[314248815,1708119077135,-702.4176784,0.000497,21]
[314248816,1708119077144,-200.0,0.000497,2]
[314248817,1708119077154,-170.696341,0.000497,2]
[314248818,1708119077163,-1000.0,0.000497,23]
[314248819,1708119077173,-1000.0,0.000497,23]
[314248820,1708119077182,-310.44,0.000497,2]
[314248821,1708119077192,-483.63442421,0.000497,35]
[314248822,1708119077202,-150.0,0.00049705,7]
[314248823,1708119077211,-3000.0,0.0004971,80]
[314248824,1708119077220,-150.0,0.00049718,7]
[314248825,1708119077229,-5483.874982,0.0004972,80]
[314248826,1708119077238,-150.0,0.00049733,7]
[314248827,1708119077248,-300.0,0.00049733,7]
[314248828,1708119077257,-150.0,0.00049745,7]
[314248829,1708119077266,-162.92132155,0.00049749,7]
[314248830,1708119077276,-150.0,0.0004975,7]
[314248831,1708119077286,-1000.0,0.0004975,2]
[314248832,1708119077295,-672.6403,0.0004975,2]
[314248833,1708119077305,-500.0,0.0004975,2]
[314248834,1708119077314,-456.6645,0.0004975,2]
[314248835,1708119077323,-150.0,0.00049753,7]
[314248836,1708119077332,-177.0556127,0.00049772,30]
[314248837,1708119077342,-1500.0,0.00049774,7]
[314248838,1708119077350,-1500.0,0.00049778,7]
[314248839,1708119077359,-150.0,0.00049798,7]
[314248840,1708119077369,-963.52854234,0.000498,60]
[314248841,1708119077378,-777.0,0.000498,120]
[314248842,1708119077386,-33242.938273,0.000498,2]
[314248843,1708119077396,-154.07,0.000498,6]
[314248844,1708119077406,-509.12,0.000498,6]
[314248845,1708119077416,-509.12,0.000498,6]
[314248846,1708119077426,-509.12,0.000498,6]
[314248847,1708119077435,-509.12,0.000498,6]
[314248848,1708119077445,-509.12,0.000498,6]
[314248849,1708119077455,-509.12,0.000498,6]
[314248850,1708119077465,-509.12,0.000498,6]
[314248851,1708119077474,-509.12,0.000498,6]
[314248852,1708119077483,-509.12,0.000498,6]
[314248853,1708119077492,-509.12,0.000498,6]
[314248854,1708119077502,-509.12,0.000498,6]
[314248855,1708119077511,-509.12,0.000498,6]
[314248856,1708119077520,-509.12,0.000498,6]
[314248857,1708119077530,-509.12,0.000498,6]
[314248858,1708119077539,-509.12,0.000498,6]
[314248859,1708119077552,-509.12,0.000498,6]
[314248860,1708119077562,-509.12,0.000498,6]
[314248861,1708119077571,-509.12,0.000498,6]
[314248862,1708119077581,-509.12,0.000498,6]
[314248863,1708119077590,-509.12,0.000498,6]
[314248864,1708119077599,-150.0,0.00049807,7]
[314248865,1708119077608,-150.0,0.00049811,7]
[314248866,1708119077618,-600.0,0.00049813,120]
[314248867,1708119077628,-150.0,0.00049818,7]
[314248868,1708119077638,-150.0,0.00049838,7]
[314248869,1708119077647,-877.93513764,0.00049846,7]
[314248870,1708119077657,-150.0,0.00049854,7]
[314248871,1708119077668,-150.0,0.00049856,7]
[314248872,1708119077677,-150.0,0.00049858,7]
[314248873,1708119077686,-150.0,0.0004986,7]
[314248874,1708119077695,-150.0,0.00049862,60]
[314248875,1708119077704,-150.0,0.00049862,60]
[314248876,1708119077713,-290.0,0.00049863,30]
[314248877,1708119077722,-500.0,0.00049863,60]
[314248878,1708119077731,-500.0,0.00049863,60]
[314248879,1708119077741,-500.0,0.00049863,60]
[314248880,1708119077750,-500.0,0.00049863,60]
[314248881,1708119077760,-500.0,0.00049863,60]
[314248882,1708119077768,-500.0,0.00049863,60]
[314248883,1708119077777,-500.0,0.00049863,60]
[314248884,1708119077786,-500.0,0.00049863,60]
[314248885,1708119077795,-500.0,0.00049863,60]
[314248886,1708119077805,-500.0,0.00049863,60]
[314248887,1708119077814,-500.0,0.00049863,60]
[314248888,1708119077822,-529.34737291,0.00049863,60]
[314248889,1708119077832,-500.0,0.00049863,60]
[314248890,1708119077840,-500.0,0.00049863,60]
[314248891,1708119077849,-500.0,0.00049863,60]
[314248892,1708119077858,-500.0,0.00049863,60]
[314248893,1708119077867,-500.0,0.00049863,60]
[314248894,1708119077876,-500.0,0.00049863,60]
[314248895,1708119077885,-500.0,0.00049863,60]
[314248896,1708119077893,-500.0,0.00049863,60]
[314248897,1708119077903,-500.0,0.00049863,60]
[314248898,1708119077916,-459.22355751,0.00049863,60]
[314248899,1708119077926,-500.0,0.00049863,60]
[314248900,1708119077935,-500.0,0.00049863,60]
[314248901,1708119077944,-500.0,0.00049863,60]
[314248902,1708119077955,-500.0,0.00049863,60]
[314248903,1708119077964,-621.02679035,0.00049863,60]
[314248904,1708119077973,-500.0,0.00049863,60]
[314248905,1708119077982,-500.0,0.00049863,60]
[314248906,1708119077992,-500.0,0.00049863,60]
[314248907,1708119078002,-500.0,0.00049863,60]
[314248908,1708119078011,-500.0,0.00049863,60]
[314248909,1708119078020,-500.0,0.00049863,60]
[314248910,1708119078029,-500.0,0.00049863,60]
[314248911,1708119078038,-500.0,0.00049863,60]
[314248912,1708119078047,-500.0,0.00049863,60]
[314248913,1708119078057,-500.0,0.00049863,60]
[314248914,1708119078066,-500.0,0.00049863,60]
[314248915,1708119078076,-500.0,0.00049863,60]
[314248916,1708119078085,-363.21361949,0.00049863,60]
[314248917,1708119078095,-500.0,0.00049863,60]
[314248918,1708119078104,-500.0,0.00049863,60]
[314248919,1708119078113,-500.0,0.00049863,60]
[314248920,1708119078123,-500.0,0.00049863,60]
[314248921,1708119078133,-500.0,0.00049863,60]
[314248922,1708119078142,-599.50621364,0.00049863,60]
[314248923,1708119078151,-500.0,0.00049863,60]
[314248924,1708119078160,-500.0,0.00049863,60]
[314248925,1708119078169,-500.0,0.00049863,60]
[314248926,1708119078178,-500.0,0.00049863,60]
[314248927,1708119078187,-500.0,0.00049863,60]
[314248928,1708119078196,-508.01805262,0.00049863,60]
[314248929,1708119078205,-500.0,0.00049863,60]
[314248930,1708119078214,-500.0,0.00049863,60]
[314248931,1708119078223,-500.0,0.00049863,60]
[314248932,1708119078233,-500.0,0.00049863,60]
[314248933,1708119078243,-500.0,0.00049863,60]
[314248934,1708119078253,-500.0,0.00049863,60]
[314248935,1708119078262,-596.85641225,0.00049863,60]
[314248936,1708119078271,-280.73937837,0.00049863,60]
[314248937,1708119078280,-314.59561163,0.00049863,60]
[314248938,1708119078289,-500.0,0.00049863,60]
[314248939,1708119078298,-500.0,0.00049863,60]
[314248940,1708119078307,-500.0,0.00049863,60]
[314248941,1708119078316,-500.0,0.00049863,60]
[314248942,1708119078325,-500.0,0.00049863,60]
[314248943,1708119078335,-500.0,0.00049863,60]
[314248944,1708119078344,-500.0,0.00049863,60]
[314248945,1708119078353,-500.0,0.00049863,60]
[314248946,1708119078362,-500.0,0.00049863,60]
[314248947,1708119078371,-500.0,0.00049863,60]
[314248948,1708119078381,-500.0,0.00049863,60]
[314248949,1708119078390,-500.0,0.00049863,60]
[314248950,1708119078399,-500.0,0.00049863,60]
[314248951,1708119078408,-500.0,0.00049863,60]
[314248952,1708119078417,-500.0,0.00049863,60]
[314248953,1708119078426,-500.0,0.00049863,60]
[314248954,1708119078435,-500.0,0.00049863,60]
[314248955,1708119078444,-500.0,0.00049863,60]
[314248956,1708119078453,-500.0,0.00049863,60]
[314248957,1708119078620,-664.54,0.00049863,30]
[314248958,1708119078629,-500.0,0.00049863,60]
[314248959,1708119078639,-500.0,0.00049863,60]
[314248960,1708119078648,-500.0,0.00049863,60]
[314248961,1708119078657,-500.0,0.00049863,60]
[314248962,1708119078666,-283.89328424,0.00049863,60]
[314248963,1708119078675,-500.0,0.00049863,60]
[314248964,1708119078684,-500.0,0.00049863,60]
[314248965,1708119078693,-500.0,0.00049863,60]
[314248966,1708119078702,-568.05,0.00049863,2]
[314248967,1708119078711,-500.0,0.00049863,60]
[314248968,1708119078721,-500.0,0.00049863,60]
[314248969,1708119078731,-500.0,0.00049863,60]
[314248970,1708119078740,-500.0,0.00049863,60]
[314248971,1708119078749,-500.0,0.00049863,60]
[314248972,1708119078758,-500.0,0.00049863,60]
[314248973,1708119078767,-500.0,0.00049863,60]
[314248974,1708119078776,-500.0,0.00049863,60]
[314248975,1708119078786,-500.0,0.00049863,60]
[314248976,1708119078795,-500.0,0.00049863,60]
[314248977,1708119078804,-500.0,0.00049863,60]
[314248978,1708119078813,-500.0,0.00049863,60]
[314248979,1708119078822,-500.0,0.00049863,60]
[314248980,1708119078832,-500.0,0.00049863,60]
[314248981,1708119078841,-500.0,0.00049863,60]
[314248982,1708119078850,-500.0,0.00049863,60]
[314248983,1708119078859,-500.0,0.00049863,60]
[314248984,1708119078869,-500.0,0.00049863,60]
[314248985,1708119078878,-373.86,0.00049863,60]
[314248986,1708119078887,-500.0,0.00049863,60]
[314248987,1708119078896,-500.0,0.00049863,60]
[314248988,1708119078906,-500.0,0.00049863,60]
[314248989,1708119078919,-500.0,0.00049863,60]
[314248990,1708119078929,-500.0,0.00049863,60]
[314248991,1708119078938,-500.0,0.00049863,60]
[314248992,1708119078947,-180.99263534,0.00049863,60]
[314248993,1708119078958,-500.0,0.00049863,60]
[314248994,1708119078966,-500.0,0.00049863,60]
[314248995,1708119078975,-500.0,0.00049863,60]
[314248996,1708119078986,-500.0,0.00049863,60]
[314248997,1708119078995,-500.0,0.00049863,60]
[314248998,1708119079005,-500.0,0.00049863,60]
[314248999,1708119079014,-500.0,0.00049863,60]
[314249000,1708119079023,-500.0,0.00049863,60]
[314249001,1708119079034,-500.0,0.00049863,60]
[314249002,1708119079044,-500.0,0.00049863,60]
[314249003,1708119079052,-509.64079811,0.00049863,60]
[314249004,1708119079063,-500.0,0.00049863,60]
[314249005,1708119079074,-500.0,0.00049863,60]
[314249006,1708119079083,-500.0,0.00049863,60]
[314249007,1708119079092,-500.0,0.00049863,60]
[314249008,1708119079101,-500.0,0.00049863,60]
[314249009,1708119079110,-500.0,0.00049863,60]
[314249010,1708119079119,-500.0,0.00049863,60]
[314249011,1708119079128,-507.34941617,0.00049863,60]
[314249012,1708119079137,-500.0,0.00049863,7]
[314249013,1708119079146,-500.0,0.00049863,60]
[314249014,1708119079155,-500.0,0.00049863,60]
[314249015,1708119079164,-500.0,0.00049863,60]
[314249016,1708119079173,-500.0,0.00049863,60]
[314249017,1708119079182,-500.0,0.00049863,60]
[314249018,1708119079193,-500.0,0.00049863,60]
[314249019,1708119079202,-500.0,0.00049863,60]
[314249020,1708119079211,-631.37,0.00049863,60]
[314249021,1708119079220,-500.0,0.00049863,60]
[314249022,1708119079229,-500.0,0.00049863,60]
[314249023,1708119079239,-500.0,0.00049863,60]
[314249024,1708119079248,-500.0,0.00049863,60]
[314249025,1708119079257,-500.0,0.00049863,60]
[314249026,1708119079266,-500.0,0.00049863,60]
[314249027,1708119079276,-500.0,0.00049863,60]
[314249028,1708119079285,-500.0,0.00049863,60]
[314249029,1708119079295,-500.0,0.00049863,60]
[314249030,1708119079304,-500.0,0.00049863,60]
[314249031,1708119079314,-500.0,0.00049863,60]
[314249032,1708119079323,-500.0,0.00049863,60]
[314249033,1708119079332,-500.0,0.00049863,60]
[314249034,1708119079341,-500.0,0.00049863,60]
[314249035,1708119079350,-522.0319016,0.00049863,60]
[314249036,1708119079359,-500.0,0.00049863,60]
[314249037,1708119079369,-500.0,0.00049863,60]
[314249038,1708119079378,-500.0,0.00049863,60]
[314249039,1708119079388,-500.0,0.00049863,60]
[314249040,1708119079397,-500.0,0.00049863,60]
[314249041,1708119079406,-500.0,0.00049863,60]
[314249042,1708119079416,-518.15039182,0.00049863,60]
[314249043,1708119079425,-500.0,0.00049863,60]
[314249044,1708119079435,-500.0,0.00049863,60]
[314249045,1708119079444,-500.0,0.00049863,60]
[314249046,1708119079453,-500.0,0.00049863,60]
[314249047,1708119079462,-500.0,0.00049863,60]
[314249048,1708119079471,-500.0,0.00049863,60]
[314249049,1708119079480,-500.0,0.00049863,60]
[314249050,1708119079489,-500.0,0.00049863,60]
[314249051,1708119079498,-500.0,0.00049863,60]
[314249052,1708119079507,-500.0,0.00049863,60]
[314249053,1708119079516,-500.0,0.00049863,60]
[314249054,1708119079525,-500.0,0.00049863,60]
[314249055,1708119079534,-500.0,0.00049863,60]
[314249056,1708119079544,-500.0,0.00049863,60]
[314249057,1708119079554,-549.14,0.00049863,60]
[314249058,1708119079563,-500.0,0.00049863,60]
[314249059,1708119079573,-500.0,0.00049863,60]
[314249060,1708119079582,-500.0,0.00049863,60]
[314249061,1708119079591,-257.66805869,0.00049863,60]
[314249062,1708119079601,-500.0,0.00049863,60]
[314249063,1708119079610,-500.0,0.00049863,60]
[314249064,1708119079619,-500.0,0.00049863,60]
[314249065,1708119079628,-500.0,0.00049863,60]
[314249066,1708119079637,-500.0,0.00049863,60]
[314249067,1708119079646,-500.0,0.00049863,60]
[314249068,1708119079655,-500.0,0.00049863,60]
[314249069,1708119079664,-500.0,0.00049863,60]
[314249070,1708119079673,-500.0,0.00049863,60]
[314249071,1708119079682,-500.0,0.00049863,60]
[314249072,1708119079691,-500.0,0.00049863,60]
[314249073,1708119079701,-500.0,0.00049863,60]
[314249074,1708119079710,-500.0,0.00049863,60]
[314249075,1708119079719,-953.91,0.00049863,60]
[314249076,1708119079729,-585.52714116,0.00049863,60]
[314249077,1708119079738,-500.0,0.00049863,60]
[314249078,1708119079747,-713.03,0.00049863,60]
[314249079,1708119079756,-500.0,0.00049863,60]
[314249080,1708119079765,-500.0,0.00049863,60]
[314249081,1708119079775,-478.28372311,0.00049863,60]
[314249082,1708119079783,-639.89,0.00049863,60]
[314249083,1708119079792,-500.0,0.00049863,60]
[314249084,1708119079801,-500.0,0.00049863,60]
[314249085,1708119079811,-500.0,0.00049863,60]
[314249086,1708119079821,-500.0,0.00049863,60]
[314249087,1708119079830,-510.16,0.00049863,60]
[314249088,1708119079840,-500.0,0.00049863,60]
[314249089,1708119079849,-500.0,0.00049863,2]
[314249090,1708119079859,-500.0,0.00049863,60]
[314249091,1708119079869,-500.0,0.00049863,60]
[314249092,1708119079878,-580.88,0.00049863,60]
[314249093,1708119079888,-500.0,0.00049863,60]
[314249094,1708119079897,-500.0,0.00049863,60]
[314249095,1708119079909,-500.0,0.00049863,60]
[314249096,1708119079924,-500.0,0.00049863,60]
[314249097,1708119079933,-500.0,0.00049863,60]
[314249098,1708119079943,-500.0,0.00049863,60]
[314249099,1708119079953,-377.91804319,0.00049863,60]
[314249100,1708119079962,-347.52531681,0.00049863,60]
[314249101,1708119079971,-500.0,0.00049863,60]
[314249102,1708119079981,-555.94,0.00049863,60]
[314249103,1708119079991,-500.0,0.00049863,60]
[314249104,1708119080000,-572.13,0.00049863,60]
[314249105,1708119080009,-500.0,0.00049863,60]
[314249106,1708119080018,-507.60655243,0.00049863,60]
[314249107,1708119080027,-570.46,0.00049863,60]
[314249108,1708119080036,-521.29592811,0.00049863,60]
[314249109,1708119080046,-500.0,0.00049863,60]
[314249110,1708119080055,-551.75,0.00049863,60]
[314249111,1708119080064,-500.0,0.00049863,60]
[314249112,1708119080073,-500.0,0.00049863,60]
[314249113,1708119080083,-500.0,0.00049863,60]
[314249114,1708119080092,-500.0,0.00049863,60]
[314249115,1708119080101,-500.0,0.00049863,60]
[314249116,1708119080111,-500.0,0.00049863,60]
[314249117,1708119080120,-500.0,0.00049863,60]
[314249118,1708119080130,-500.0,0.00049863,60]
[314249119,1708119080139,-291.73997857,0.00049863,60]
[314249120,1708119080149,-616.49,0.00049863,60]
[314249121,1708119080158,-500.0,0.00049863,60]
[314249122,1708119080168,-500.0,0.00049863,60]
[314249123,1708119080177,-500.0,0.00049863,60]
[314249124,1708119080187,-500.0,0.00049863,60]
[314249125,1708119080196,-500.0,0.00049863,60]
[314249126,1708119080206,-591.48220799,0.00049863,60]
[314249127,1708119080216,-569.39,0.00049863,60]
[314249128,1708119080225,-500.0,0.00049863,60]
[314249129,1708119080234,-500.0,0.00049863,60]
[314249130,1708119080244,-500.0,0.00049863,60]
[314249131,1708119080253,-500.0,0.00049863,60]
[314249132,1708119080263,-614.71,0.00049863,60]
[314249133,1708119080272,-500.0,0.00049863,60]
[314249134,1708119080281,-500.0,0.00049863,60]
[314249135,1708119080290,-500.0,0.00049863,60]
[314249136,1708119080299,-500.0,0.00049863,60]
[314249137,1708119080309,-2236.49,0.00049863,60]
[314249138,1708119080318,-500.0,0.00049863,60]
[314249139,1708119080327,-869.27,0.00049863,60]
[314249140,1708119080336,-527.41693336,0.00049863,60]
[314249141,1708119080345,-679.72,0.00049863,60]
[314249142,1708119080355,-500.0,0.00049863,60]
[314249143,1708119080364,-500.0,0.00049863,60]
[314249144,1708119080374,-500.0,0.00049863,60]
[314249145,1708119080384,-500.0,0.00049863,60]
[314249146,1708119080393,-514.97,0.00049863,60]
[314249147,1708119080403,-745.29,0.00049863,60]
[314249148,1708119080413,-500.0,0.00049863,60]
[314249149,1708119080422,-500.0,0.00049863,60]
[314249150,1708119080431,-597.04,0.00049863,60]
[314249151,1708119080441,-500.0,0.00049863,60]
[314249152,1708119080450,-500.0,0.00049863,60]
[314249153,1708119080459,-647.43,0.00049863,60]
[314249154,1708119080469,-500.0,0.00049863,60]
[314249155,1708119080478,-541.75,0.00049863,60]
[314249156,1708119080487,-500.0,0.00049863,60]
[314249157,1708119080497,-500.0,0.00049863,60]
[314249158,1708119080506,-500.0,0.00049863,60]
[314249159,1708119080515,-500.0,0.00049863,60]
[314249160,1708119080525,-1088.61,0.00049863,2]
[314249161,1708119080534,-500.0,0.00049863,60]
[314249162,1708119080544,-500.0,0.00049863,60]
[314249163,1708119080554,-500.0,0.00049863,60]
[314249164,1708119080564,-500.0,0.00049863,60]
[314249165,1708119080573,-500.0,0.00049863,60]
[314249166,1708119080583,-500.0,0.00049863,60]
[314249167,1708119080592,-500.0,0.00049863,60]
[314249168,1708119080601,-500.0,0.00049863,60]
[314249169,1708119080611,-568.01,0.00049863,60]
[314249170,1708119080620,-500.0,0.00049863,60]
[314249171,1708119080629,-500.0,0.00049863,60]
[314249172,1708119080639,-581.86,0.00049863,60]
[314249173,1708119080648,-500.0,0.00049863,60]
[314249174,1708119080658,-500.0,0.00049863,60]
[314249175,1708119080668,-500.0,0.00049863,60]
[314249176,1708119080677,-500.0,0.00049863,60]
[314249177,1708119080688,-792.04,0.00049863,60]
[314249178,1708119080698,-500.0,0.00049863,60]
[314249179,1708119080707,-500.0,0.00049863,60]
[314249180,1708119080717,-500.0,0.00049863,60]
[314249181,1708119080727,-500.0,0.00049863,60]
[314249182,1708119080736,-506.8191254,0.00049863,60]
[314249183,1708119080745,-500.0,0.00049863,60]
[314249184,1708119080755,-500.0,0.00049863,60]
[314249185,1708119080765,-500.0,0.00049863,60]
[314249186,1708119080774,-500.0,0.00049863,60]
[314249187,1708119080783,-500.0,0.00049863,60]
[314249188,1708119080793,-500.0,0.00049863,60]
[314249189,1708119080802,-500.0,0.00049863,7]
[314249190,1708119080811,-574.86,0.00049863,60]
[314249191,1708119080821,-500.0,0.00049863,60]
[314249192,1708119080831,-500.0,0.00049863,60]
[314249193,1708119080840,-500.0,0.00049863,60]
[314249194,1708119080852,-500.0,0.00049863,60]
[314249195,1708119080861,-500.0,0.00049863,60]
[314249196,1708119080871,-500.0,0.00049863,60]
[314249197,1708119080880,-724.01,0.00049863,60]
[314249198,1708119080889,-500.0,0.00049863,30]
[314249199,1708119080899,-500.0,0.00049863,60]
[314249200,1708119080912,-500.0,0.00049863,60]
[314249201,1708119080921,-500.0,0.00049863,60]
[314249202,1708119080930,-514.43686333,0.00049863,60]